fUSD/lending_fUSD_20240606
["ID","MTS","AMOUNT","RATE_DAILY","PERIOD"]
[328677817,1717692652750,-4163.8478063,0.00029996,2]
[328677818,1717692652759,-530.45664041,0.00029996,2]
[328677819,1717692652769,-411.24369396,0.00029996,2]
[328677820,1717692652778,-199.25568122,0.00029996,2]
[328677821,1717692652788,-599.27979208,0.00029996,2]
[328677822,1717692652798,-157.51848632,0.00029996,2]
[328677823,1717692652808,-2053.44124277,0.00029996,2]
[328677824,1717692652817,-155.85425681,0.00029996,2]
[328677825,1717692652826,-155.92290492,0.00029996,2]
[328677826,1717692652836,-308.3572324,0.00029996,2]
[328677827,1717692652845,-155.60354133,0.00029996,2]
[328677828,1717692652855,-321.96055433,0.00029996,2]
[328677829,1717692652865,-325.60601034,0.00029996,2]
[328677830,1717692652874,-305.1459001,0.00029996,2]
[328677831,1717692652884,-155.21224688,0.00029996,2]
[328677832,1717692652893,-264.52157603,0.00029996,2]
[328677833,1717692652903,-155.0,0.00029996,2]
[328677834,1717692652912,-156.32036524,0.00029996,2]
[328677835,1717692652921,-1227.95940182,0.00029996,2]
[328677836,1717692652931,-1762.91775327,0.00029996,2]
[328677837,1717692652940,-208.31224876,0.00029996,2]
[328677838,1717692652950,-156.03334785,0.00029996,2]
[328677839,1717692652959,-155.0,0.00029996,2]
[328677840,1717692652970,-250.48972718,0.00029996,2]
[328677841,1717692652979,-2333.31828049,0.00029996,2]
[328677842,1717692652989,-155.63830796,0.00029996,2]
[328677843,1717692652999,-195.06967946,0.00029996,2]
[328677844,1717692653008,-163.07491511,0.00029996,2]
[328677845,1717692653018,-275.46328575,0.00029996,2]
[328677846,1717692653028,-2060.62366659,0.00029996,2]
[328677847,1717692653037,-204.83680168,0.00029996,2]
[328677848,1717692653047,-156.7671486,0.00029996,2]
[328677849,1717692653057,-233.7079612,0.00029996,2]
[328677850,1717692653067,-263.30296889,0.00029996,2]
[328677851,1717692653076,-156.12960507,0.00029996,2]
[328677852,1717692653086,-155.0,0.00029996,2]
[328677853,1717692653095,-282.65716454,0.00029996,2]
[328677854,1717692653106,-155.0,0.00029996,2]
[328677855,1717692653116,-262.76725722,0.00029996,2]
[328677856,1717692653125,-155.0,0.00029996,2]
[328677857,1717692653135,-155.68056642,0.00029996,2]
[328677858,1717692653143,-480.94869717,0.00029996,2]
[328677859,1717692653153,-622.42687039,0.00029996,2]
[328677860,1717692653162,-1000.0,0.00029996,2]
[328677861,1717692653172,-599.06685493,0.00029996,2]
[328677862,1717692653183,-325.55682628,0.00029996,2]
[328677863,1717692653193,-182.84543516,0.00029996,2]
[328677864,1717692653203,-3212.42301623,0.00029996,2]
[328677865,1717692653213,-428.48017839,0.00029996,2]
[328677866,1717692653223,-155.0,0.00029996,2]
[328677867,1717692653233,-665.1399253,0.00029996,2]
[328677868,1717692653242,-292.72818215,0.00029996,2]
[328677869,1717692653252,-159.76251273,0.00029996,2]
[328677870,1717692653262,-1215.97687186,0.00029996,2]
[328677871,1717692653271,-246.92247327,0.00029996,2]
[328677872,1717692653281,-168.75338433,0.00029996,2]
[328677873,1717692653290,-439.5455433,0.00029996,2]
[328677874,1717692653300,-632.41156355,0.00029996,2]
[328677875,1717692653309,-400.60003504,0.00029996,2]
[328677876,1717692653319,-415.86251842,0.00029996,2]
[328677877,1717692653329,-157.68222462,0.00029996,2]
[328677878,1717692653338,-338.60636005,0.00029996,2]
[328677879,1717692653348,-295.92561526,0.00029996,2]
[328677880,1717692653358,-277.38315109,0.00029996,2]
[328677881,1717692653368,-500.0,0.00029996,4]
[328677882,1717692653379,-500.0,0.00029996,4]
[328677883,1717692653388,-500.0,0.00029996,4]
[328677884,1717692653398,-500.0,0.00029996,4]
[328677885,1717692653442,-546.05,0.00029996,4]
[328677886,1717692653453,-500.0,0.00029996,4]
[328677887,1717692653463,-547.94,0.00029996,4]
[328677888,1717692653473,-107588.43,0.00029997,2]
[328677889,1717692653483,-500.0,0.00029997,4]
[328677890,1717692653492,-500.0,0.00029997,4]
[328677891,1717692653501,-500.0,0.00029997,4]
[328677892,1717692653511,-500.0,0.00029997,4]
[328677893,1717692653522,-546.05,0.00029997,4]
[328677894,1717692653531,-546.05,0.00029997,4]
[328677895,1717692653541,-546.05,0.00029997,4]
[328677896,1717692653551,-546.05,0.00029997,4]
[328677897,1717692653560,-546.05,0.00029997,4]
[328677898,1717692653569,-546.05,0.00029997,4]
[328677899,1717692653579,-546.05,0.00029997,4]
[328677900,1717692653588,-546.08733924,0.00029997,4]
[328677901,1717692653598,-500.0,0.00029997,4]
[328677902,1717692653608,-500.0,0.00029997,4]
[328677903,1717692653619,-500.0,0.00029997,4]
[328677904,1717692653628,-500.0,0.00029997,4]
[328677905,1717692653638,-500.0,0.00029997,4]
[328677906,1717692653647,-500.0,0.00029997,4]
[328677907,1717692653656,-611.36064669,0.00029997,4]
[328677908,1717692653666,-547.94,0.00029997,4]
[328677909,1717692653676,-547.94,0.00029997,4]
[328677910,1717692653685,-547.94,0.00029997,4]
[328677911,1717692653695,-547.94,0.00029997,4]
[328677912,1717692653705,-547.94,0.00029997,4]
[328677913,1717692653715,-547.94,0.00029997,4]
[328677914,1717692653724,-548.0492519,0.00029997,4]
[328677915,1717692653734,-241.34819951,0.00029998,2]
[328677916,1717692653744,-200.22622272,0.00029998,2]
[328677917,1717692653754,-156.15744793,0.00029998,2]
[328677918,1717692653764,-1355.18677678,0.00029998,2]
[328677919,1717692653773,-263.31816846,0.00029998,2]
[328677920,1717692653783,-1390.43431935,0.00029998,2]
[328677921,1717692653793,-865.85221642,0.00029998,3]
[328677922,1717692653802,-6255.71829137,0.00029998,2]
[328677923,1717692653812,-1010.45200313,0.00029998,2]
[328677924,1717692653821,-789.68098133,0.00029998,2]
[328677925,1717692653831,-187.34820018,0.00029998,2]
[328677926,1717692653840,-4287.57858381,0.00029998,2]
[328677927,1717692653850,-1066.6874522,0.00029998,2]
[328677928,1717692653860,-1182.36741036,0.00029998,2]
[328677929,1717692653869,-6789.47504739,0.00029998,2]
[328677930,1717692653879,-325.64160337,0.00029998,2]
[328677931,1717692653889,-3016.07364784,0.00029998,2]
[328677932,1717692653899,-155.0,0.00029998,2]
[328677933,1717692653908,-3589.3922936,0.00029998,2]
[328677934,1717692653918,-4647.13637462,0.00029998,2]
[328677935,1717692653927,-1091932.75812409,0.00029998,2]
[328677936,1717692654065,-500.0,0.00029863,4]
[328677937,1717692654074,-3353.3,0.00029998,2]
[328677938,1717692654090,-696.65702926,0.00029998,2]
[328677939,1717692654103,-3755.125,0.00029998,2]
[328677940,1717692654119,-210296.62328732,0.00029998,2]
[328677941,1717692654132,-3619.06326107,0.00029998,2]
[328677942,1717692654144,-959.55,0.00029998,2]
[328677943,1717692654160,-11811.20026128,0.00029998,2]
[328677944,1717692654172,-1298.43288283,0.00029998,2]
[328677945,1717692654196,-307.3,0.00029998,2]
[328677946,1717692654224,-470.26399671,0.00029863,4]
[328677947,1717692654235,-29.73600329,0.00029863,4]
[328677948,1717692654245,-500.0,0.00029863,4]
[328677949,1717692654254,-6865.06403946,0.00029998,2]
[328677950,1717692654265,-426.596739,0.00029998,2]
[328677951,1717692654276,-1264.35759293,0.00029998,2]
[328677952,1717692654287,-8652.7160325,0.00029998,2]
[328677953,1717692654379,-345.79999999,0.00013999,2]
[328677954,1717692654553,-64.48749014,0.00013999,2]
[328677955,1717692654562,-374.25,0.0001938,2]
[328677956,1717692654572,-374.25,0.00021644,2]
[328677957,1717692654582,-374.25,0.00023908,2]
[328677958,1717692654592,-374.25,0.00026172,2]
[328677959,1717692654602,-374.25,0.00028436,2]
[328677960,1717692654613,-500.0,0.00029863,4]
[328677961,1717692654623,-517.51,0.00029863,4]
[328677962,1717692654632,-500.0,0.00029863,4]
[328677963,1717692654641,-500.0,0.00029863,4]
[328677964,1717692654652,-500.0,0.00029863,4]
[328677965,1717692654666,-500.0,0.00029863,4]
[328677966,1717692654678,-500.0,0.00029863,4]
[328677967,1717692654693,-206.85,0.00029863,4]
[328677968,1717692654709,-500.0,0.00029863,4]
[328677969,1717692654718,-500.0,0.00029863,4]
[328677970,1717692654729,-500.0,0.00029863,4]
[328677971,1717692654738,-500.0,0.00029863,4]
[328677972,1717692654750,-409.25,0.00029863,4]
[328677973,1717692654759,-633.24,0.00029863,4]
[328677974,1717692654770,-2508.54751456,0.00029998,2]
[328677975,1717692654782,-2056.76758228,0.00029998,2]
[328677976,1717692654794,-9183.69,0.00029998,2]
[328677977,1717692654805,-513330.24725983,0.00029998,2]
[328677978,1717692654817,-3830.1,0.00029998,2]
[328677979,1717692654833,-93750.28879989,0.00029998,2]
[328677980,1717692654845,-354.45425,0.00029998,2]
[328677981,1717692654858,-76208.99999944,0.00029998,2]
[328677982,1717693433824,1000.0,0.0003,40]
[328677984,1717693624146,-155.0,0.00013787,2]
[328677997,1717693636602,-453.11382736,0.00013788,2]
[328677998,1717693649196,-6261.05730229,0.00013787,2]
[328677999,1717693650940,-1346.88617264,0.00013787,2]
[328678012,1717693832088,-4441.68139867,0.0001351,2]
[328678013,1717693832098,-2611.20547856,0.00013511,2]
[328678014,1717693832108,-340.9365,0.00013687,2]
[328678015,1717693832117,-150.0,0.00013786,2]
[328678016,1717693832128,-17043.77525641,0.00013787,2]
[328678017,1717693832137,-155.0,0.00013787,2]
[328678018,1717693832146,-156.91231772,0.000138,2]
[328678019,1717693832155,-1000.0,0.000139,2]
[328678020,1717693832165,-499.99,0.00019726,2]
[328678021,1717693832174,-150.99,0.000219,2]
[328678022,1717693832183,-500.0,0.000219,2]
[328678023,1717693832193,-751.9144439,0.00024086,3]
[328678024,1717693832202,-105.08817072,0.00024186,2]
[328678025,1717693832214,-3394.03843714,0.00024186,2]
[328678026,1717693832225,-681.33,0.00024186,2]
[328678027,1717693832237,-3318.30438662,0.00024186,2]
[328678028,1717693832428,-1101.00994531,0.00024186,2]
[328678029,1717693832450,-2381.40705352,0.00024186,2]
[328678031,1717693832498,-2202.63002578,0.00024186,2]
[328678033,1717693832507,-342.91329591,0.00024186,2]
[328678035,1717693832516,-1168.9370454,0.00024186,2]
[328678037,1717693832525,-250.0,0.00024228,2]
[328678039,1717693832534,-160.04,0.00024384,2]
[328678041,1717693832543,-250.0,0.00024627,2]
[328678043,1717693832552,-500.0,0.000249,9]
[328678046,1717693832562,-1250.0,0.00025,2]
[328678049,1717693832572,-155.0,0.00025,2]
[328678051,1717693832582,-706.05483356,0.00025357,2]
[328678054,1717693832592,-159.90388304,0.00025358,2]
[328678057,1717693832601,-1759.82224105,0.00025358,2]
[328678059,1717693832611,-302.00605616,0.00025358,2]
[328678062,1717693832621,-322.15475362,0.00025358,2]
[328678065,1717693832635,-189.92070065,0.00025447,2]
[328678068,1717693832644,-859.37,0.00025447,3]
[328678071,1717693832654,-151.78,0.00025448,2]
[328678074,1717693832663,-6423.46715583,0.00025457,2]
[328678075,1717693832677,-709.709,0.00025457,2]
[328678077,1717693832689,-463754.89866392,0.00025457,2]
[328678079,1717693832700,-2400.0,0.00025457,2]
[328678080,1717693832714,-28869.66410086,0.00025457,2]
[328678081,1717693832727,-1497.40968006,0.00025457,2]
[328678082,1717693832740,-4179.93350422,0.00025457,2]
[328678084,1717693832751,-2302.90819411,0.00025457,2]
[328678098,1717693838095,-1172.76967418,0.00025457,2]
[328678115,1717693838513,-1745.78606927,0.00025457,2]
[328678116,1717693838578,-3149.10966339,0.00025457,2]
[328678117,1717693838590,-999.41500072,0.00025457,2]
[328678118,1717693838602,-15840.39542271,0.00025457,2]
[328678119,1717693838614,-7844.69112302,0.00025457,2]
[328678120,1717693838626,-146936.18833148,0.00025457,2]
[328678121,1717693838707,-3016.51864267,0.00025457,2]
[328678122,1717693838719,-303.68745957,0.00025458,7]
[328678123,1717693838729,-326.38000003,0.00025458,7]
[328678124,1717693838738,-46677.80908812,0.00025458,7]
[328678127,1717693838751,-1814.56851,0.00025458,7]
[328678394,1717693841669,-2862.12104921,0.00025458,7]
[328678403,1717693841744,-1392.11880831,0.00025458,7]
[328678437,1717693842081,-710.26,0.00025458,7]
[328678439,1717693842092,-22061.85443902,0.00025458,7]
[328678548,1717693843393,-7153.60866,0.00025458,7]
[328678551,1717693843405,-732.51196725,0.00025458,7]
[328678553,1717693843415,-21819.99370451,0.00025458,7]
[328678555,1717693843427,-325.48556434,0.00025458,7]
[328678574,1717693843592,-282.37254714,0.00025458,7]
[328678589,1717693843857,-32320.5482671,0.00025458,7]
[328678590,1717693843868,-4840.55,0.00025468,2]
[328678591,1717693843880,-194.34522036,0.00025673,2]
[328678592,1717693843890,-280.69,0.00025874,2]
[328678594,1717693843900,-1759.82224098,0.00026007,2]
[328678596,1717693843909,-500.0,0.00026244,2]
[328678598,1717693843919,-155.0,0.0002665,2]
[328678600,1717693843929,-1000.0,0.00026651,2]
[328678602,1717693843938,-1759.82224098,0.00026656,2]
[328678604,1717693843947,-157.73431961,0.00026698,2]
[328678606,1717693843957,-194.34522032,0.0002673,2]
[328678608,1717693843967,-468.91019509,0.00026931,2]
[328678610,1717693843977,-1300.0,0.00027,2]
[328678612,1717693843986,-200.0,0.00027,2]
[328678614,1717693843995,-1759.82224098,0.00027305,2]
[328678616,1717693844004,-500.0,0.0002734,2]
[328678617,1717693844014,-183.96,0.00027346,2]
[328678618,1717693844024,-812.79,0.00027397,10]
[328678619,1717693844033,-677.33,0.00027397,10]
[328678620,1717693844043,-564.44,0.00027397,10]
[328678621,1717693844052,-161.87,0.000274,2]
[328678623,1717693844061,-302.00605614,0.00027561,2]
[328678625,1717693844070,-769.99,0.00027605,2]
[328678626,1717693844079,-1175.09306933,0.00027725,2]
[328678627,1717693844089,-194.34522032,0.00027787,2]
[328678628,1717693844099,-250.0,0.00027851,2]
[328678629,1717693844108,-1759.82224098,0.00027953,2]
[328678630,1717693844117,-1000.0,0.00027997,2]
[328678631,1717693844126,-280.69,0.00028137,2]
[328678632,1717693844137,-220.38,0.00028403,2]
[328678633,1717693844148,-500.0,0.00028436,2]
[328678635,1717693844158,-155.19529113,0.00028496,2]
[328678637,1717693844167,-1759.82224098,0.00028602,2]
[328678638,1717693844176,-152.0,0.00028623,3]
[328678639,1717693844186,-200.0,0.0002882,2]
[328678640,1717693844195,-194.34522032,0.00028843,2]
[328678641,1717693844204,-600.0,0.0002888,2]
[328678642,1717693844214,-1350.0,0.00029,2]
[328678643,1717693844224,-1000.0,0.00029,10]
[328678644,1717693844234,-1500.0,0.000291,10]
[328678645,1717693844244,-1000.0,0.00029199,2]
[328678646,1717693844254,-2622.0,0.000292,2]
[328678647,1717693844263,-2000.0,0.000292,10]
[328678648,1717693844272,-1759.82224098,0.00029251,2]
[328678649,1717693844281,-2500.0,0.000293,10]
[328678650,1717693844291,-500.0,0.000294,10]
[328678651,1717693844300,-200.0,0.0002941,2]
[328678652,1717693844310,-200.0,0.0002941,2]
[328678653,1717693844320,-202.0,0.0002943,2]
[328678654,1717693844329,-226.62818763,0.000295,3]
[328678655,1717693844338,-500.0,0.000295,10]
[328678656,1717693844348,-300.0,0.00029532,2]
[328678657,1717693844357,-351.88844729,0.00029599,2]
[328678658,1717693844366,-1500.0,0.000296,2]
[328678659,1717693844375,-2250.0,0.000296,2]
[328678660,1717693844384,-500.0,0.000296,10]
[328678661,1717693844396,-203.19,0.0002964,2]
[328678662,1717693844405,-154.2025836,0.00029651,2]
[328678663,1717693844414,-154.22504777,0.00029665,2]
[328678664,1717693844423,-247.05607042,0.00029681,2]
[328678665,1717693844431,-153.24544879,0.00029699,2]
[328678666,1717693844441,-202.13874,0.000297,2]
[328678667,1717693844450,-500.0,0.000297,10]
[328678668,1717693844459,-247.05607042,0.00029704,2]
[328678669,1717693844469,-154.2025836,0.00029705,2]
[328678670,1717693844478,-1400.0,0.0002975,2]
[328678671,1717693844488,-1400.0,0.0002975,2]
[328678672,1717693844497,-156.91231771,0.00029753,2]
[328678673,1717693844507,-202.634389,0.00029757,2]
[328678674,1717693844516,-170.15696502,0.00029757,2]
[328678675,1717693844526,-500.0,0.0002976,2]
[328678676,1717693844535,-200.0,0.0002976,2]
[328678677,1717693844544,-682.94654362,0.00029763,2]
[328678678,1717693844553,-175.96130782,0.00029763,2]
[328678679,1717693844563,-302.00605614,0.00029763,2]
[328678680,1717693844572,-3338.5617,0.00029771,2]
[328678681,1717693844582,-682.94654357,0.00029775,2]
[328678682,1717693844592,-297.8787562,0.00029784,2]
[328678683,1717693844602,-418.18251552,0.00029787,2]
[328678684,1717693844612,-682.94654357,0.00029788,2]
[328678685,1717693844622,-58673.0434,0.00029798,2]
[328678686,1717693844631,-625.0,0.000298,10]
[328678687,1717693844642,-682.94654357,0.000298,2]
[328678688,1717693844651,-682.94654357,0.00029813,2]
[328678689,1717693844660,-247.05607042,0.00029816,2]
[328678690,1717693844670,-682.94654357,0.00029825,2]
[328678691,1717693844679,-154.00356296,0.00029827,2]
[328678692,1717693844689,-153.52790425,0.00029832,2]
[328678693,1717693844698,-153.24544879,0.00029833,2]
[328678694,1717693844707,-682.94654357,0.00029838,2]
[328678695,1717693844717,-297.8787562,0.00029838,2]
[328678696,1717693844727,-179.15175881,0.00029848,2]
[328678697,1717693844735,-682.94654357,0.0002985,2]
[328678698,1717693844745,-35370.18115071,0.00029853,2]
[328678699,1717693844757,-428.03097649,0.00029853,2]
[328678700,1717693844768,-2575.35667527,0.00029853,2]
[328678701,1717693844779,-8101.82483866,0.00029853,2]
[328678702,1717693844791,-1820.51498043,0.00029853,2]
[328678703,1717693844816,-283.48003057,0.00025453,2]
[328678704,1717693844825,-1568.40601905,0.00029853,2]
[328678705,1717693845357,-2402.42616078,0.00013787,2]
[328678706,1717693846058,-1448.84683139,0.00013787,2]
[328678707,1717693846188,-20800.44573917,0.00013787,2]
[328678708,1717693846198,-50135.68535939,0.00029853,2]
[328678709,1717693846207,-179.15175881,0.00029853,2]
[328678710,1717693846217,-321.46479676,0.00029862,2]
[328678711,1717693846227,-682.94654357,0.00029863,2]
[328678712,1717693846237,-500.0,0.00029863,4]
[328678713,1717693846246,-500.0,0.00029863,4]
[328678714,1717693846255,-239.12,0.00029863,4]
[328678715,1717693846265,-500.0,0.00029863,4]
[328678716,1717693846275,-500.0,0.00029863,4]
[328678717,1717693846284,-226.86097971,0.00029863,4]
[328678718,1717693846293,-500.0,0.00029863,4]
[328678719,1717693846302,-500.0,0.00029863,4]
[328678720,1717693846311,-500.0,0.00029863,4]
[328678721,1717693846320,-259.66423808,0.00029863,4]
[328678722,1717693846329,-500.0,0.00029863,2]
[328678723,1717693846339,-500.0,0.00029863,2]
[328678724,1717693846349,-250.0,0.00029863,4]
[328678725,1717693846358,-500.0,0.00029863,4]
[328678726,1717693846368,-250.0,0.00029863,4]
[328678727,1717693846377,-500.0,0.00029863,4]
[328678728,1717693846389,-500.0,0.00029863,4]
[328678729,1717693846398,-500.0,0.00029863,4]
[328678730,1717693846407,-500.0,0.00029863,4]
[328678731,1717693846416,-500.0,0.00029863,4]
[328678732,1717693846425,-500.0,0.00029863,4]
[328678733,1717693846435,-500.0,0.00029863,4]
[328678734,1717693846444,-500.0,0.00029863,4]
[328678735,1717693846453,-468.92539887,0.00029863,4]
[328678736,1717693846463,-500.0,0.00029863,4]
[328678737,1717693846472,-500.0,0.00029863,4]
[328678738,1717693846481,-500.0,0.00029863,2]
[328678739,1717693846490,-500.0,0.00029863,2]
[328678740,1717693846499,-509.23700192,0.00029863,4]
[328678741,1717693846508,-500.0,0.00029863,4]
[328678742,1717693846517,-500.0,0.00029863,4]
[328678743,1717693846526,-500.0,0.00029863,4]
[328678744,1717693846535,-500.0,0.00029863,4]
[328678745,1717693846544,-500.0,0.00029863,4]
[328678746,1717693846553,-521.06,0.00029863,4]
[328678747,1717693846563,-500.0,0.00029863,4]
[328678748,1717693846571,-500.0,0.00029863,4]
[328678749,1717693846581,-500.0,0.00029863,4]
[328678750,1717693846590,-516.7,0.00029863,4]
[328678751,1717693846599,-505.51625852,0.00029863,4]
[328678752,1717693846608,-500.0,0.00029863,4]
[328678754,1717693846617,-500.0,0.00029863,4]
[328678756,1717693846626,-500.0,0.00029863,4]
[328678758,1717693846635,-500.0,0.00029863,4]
[328678760,1717693846646,-500.0,0.00029863,4]
[328678762,1717693846655,-500.0,0.00029863,4]
[328678764,1717693846664,-500.0,0.00029863,4]
[328678766,1717693846673,-500.0,0.00029863,4]
[328678768,1717693846682,-500.0,0.00029863,4]
[328678770,1717693846691,-500.0,0.00029863,4]
[328678772,1717693846701,-500.0,0.00029863,4]
[328678774,1717693846710,-500.0,0.00029863,4]
[328678776,1717693846719,-206.48741534,0.00029863,4]
[328678778,1717693846728,-500.0,0.00029863,4]
[328678780,1717693846738,-500.0,0.00029863,4]
[328678782,1717693846747,-500.0,0.00029863,4]
[328678784,1717693846756,-500.0,0.00029863,4]
[328678785,1717693846766,-500.0,0.00029863,4]
[328678787,1717693846775,-500.0,0.00029863,4]
[328678789,1717693846784,-500.0,0.00029863,4]
[328678790,1717693846794,-500.0,0.00029863,4]
[328678791,1717693846808,-500.0,0.00029863,4]
[328678792,1717693846817,-500.0,0.00029863,4]
[328678793,1717693846827,-500.0,0.00029863,4]
[328678794,1717693846836,-500.0,0.00029863,4]
[328678795,1717693846846,-500.0,0.00029863,4]
[328678796,1717693846855,-299.11561186,0.00029863,4]
[328678797,1717693846865,-463.11995779,0.00029863,4]
[328678798,1717693846876,-500.0,0.00029863,4]
[328678799,1717693846885,-500.0,0.00029863,4]
[328678800,1717693846895,-500.0,0.00029863,4]
[328678801,1717693846904,-500.0,0.00029863,4]
[328678802,1717693846913,-500.0,0.00029863,4]
[328678803,1717693846922,-500.0,0.00029863,4]
[328678804,1717693846931,-500.0,0.00029863,4]
[328678805,1717693846940,-500.0,0.00029863,4]
[328678806,1717693846949,-500.0,0.00029863,4]
[328678807,1717693846959,-500.0,0.00029863,4]
[328678808,1717693846969,-186.36,0.00029863,4]
[328678809,1717693846978,-500.0,0.00029863,4]
[328678810,1717693846987,-500.0,0.00029863,4]
[328678811,1717693846996,-500.0,0.00029863,4]
[328678812,1717693847006,-500.0,0.00029863,4]
[328678813,1717693847015,-500.0,0.00029863,4]
[328678814,1717693847024,-500.0,0.00029863,4]
[328678815,1717693847033,-500.0,0.00029863,4]
[328678816,1717693847042,-500.0,0.00029863,4]
[328678817,1717693847051,-500.0,0.00029863,4]
[328678818,1717693847061,-500.0,0.00029863,4]
[328678819,1717693847070,-500.0,0.00029863,4]
[328678820,1717693847079,-500.0,0.00029863,4]
[328678821,1717693847088,-151.3481011,0.00029863,4]
[328678822,1717693847097,-500.0,0.00029863,4]
[328678823,1717693847106,-152.65,0.00029863,4]
[328678824,1717693847116,-500.0,0.00029863,4]
[328678825,1717693847125,-551.64,0.00029863,4]
[328678826,1717693847134,-500.0,0.00029863,4]
[328678827,1717693847146,-500.0,0.00029863,4]
[328678828,1717693847155,-500.0,0.00029863,4]
[328678829,1717693847163,-500.0,0.00029863,4]
[328678830,1717693847172,-500.0,0.00029863,4]
[328678831,1717693847182,-500.0,0.00029863,4]
[328678832,1717693847191,-380.06,0.00029863,4]
[328678833,1717693847200,-500.0,0.00029863,4]
[328678834,1717693847210,-500.0,0.00029863,4]
[328678835,1717693847219,-561.97787594,0.00029863,4]
[328678836,1717693847228,-500.0,0.00029863,4]
[328678837,1717693847238,-222.01039826,0.00029863,4]
[328678838,1717693847247,-500.0,0.00029863,4]
[328678839,1717693847256,-500.0,0.00029863,4]
[328678840,1717693847266,-500.0,0.00029863,4]
[328678841,1717693847276,-500.0,0.00029863,4]
[328678842,1717693847286,-500.0,0.00029863,4]
[328678843,1717693847296,-500.0,0.00029863,4]
[328678844,1717693847307,-500.0,0.00029863,4]
[328678845,1717693847316,-500.0,0.00029863,4]
[328678846,1717693847326,-500.0,0.00029863,4]
[328678847,1717693847336,-500.0,0.00029863,4]
[328678848,1717693847346,-500.0,0.00029863,4]
[328678849,1717693847356,-500.0,0.00029863,4]
[328678850,1717693847366,-573.32,0.00029863,4]
[328678851,1717693847375,-500.0,0.00029863,4]
[328678852,1717693847386,-500.0,0.00029863,4]
[328678853,1717693847400,-500.0,0.00029863,4]
[328678854,1717693847410,-500.0,0.00029863,4]
[328678855,1717693847420,-500.0,0.00029863,4]
[328678856,1717693847431,-246.45,0.00029863,4]
[328678857,1717693847441,-500.0,0.00029863,4]
[328678858,1717693847451,-500.0,0.00029863,4]
[328678859,1717693847460,-500.0,0.00029863,4]
[328678860,1717693847470,-500.0,0.00029863,4]
[328678861,1717693847480,-245.14,0.00029863,4]
[328678862,1717693847489,-500.0,0.00029863,4]
[328678863,1717693847499,-500.0,0.00029863,4]
[328678864,1717693847508,-500.0,0.00029863,4]
[328678865,1717693847518,-500.0,0.00029863,4]
[328678866,1717693847528,-605.60336966,0.00029863,4]
[328678867,1717693847538,-556.05,0.00029863,4]
[328678868,1717693847547,-500.0,0.00029863,4]
[328678869,1717693847557,-500.0,0.00029863,4]
[328678870,1717693847567,-500.0,0.00029863,4]
[328678871,1717693847577,-500.0,0.00029863,4]
[328678872,1717693847586,-500.0,0.00029863,4]
[328678873,1717693847596,-500.0,0.00029863,4]
[328678874,1717693847605,-281.97,0.00029863,4]
[328678875,1717693847615,-500.0,0.00029863,4]
[328678876,1717693847624,-500.0,0.00029863,4]
[328678877,1717693847633,-500.0,0.00029863,4]
[328678878,1717693847645,-500.0,0.00029863,4]
[328678879,1717693847654,-500.0,0.00029863,4]
[328678880,1717693847662,-500.0,0.00029863,4]
[328678881,1717693847671,-643.88764368,0.00029863,4]
[328678882,1717693847681,-500.0,0.00029863,4]
[328678883,1717693847690,-601.15,0.00029863,4]
[328678884,1717693847700,-528.54,0.00029863,4]
[328678885,1717693847709,-500.0,0.00029863,4]
[328678886,1717693847719,-500.0,0.00029863,4]
[328678887,1717693847728,-500.0,0.00029863,4]
[328678888,1717693847738,-397.91,0.00029863,4]